bitfinex/quotes_ETHUSD_20220305
["timestamp","ask_amount","ask_price","bid_price","bid_amount"]
[1646442328790,0.93131422,2610.2,2609.7,0.95622034]
[1646442328990,0.93131422,2610.2,2609.5,4.83348]
[1646442329192,0.0232652,2610.2,2609.5,4.83348]
[1646442329390,0.00255516,2610.1,2609.5,4.83348]
[1646442329592,0.02486036,2610.1,2609.6,12.0432]
[1646442329792,0.02486036,2610.1,2609.7,0.1913]
[1646442330235,0.02486036,2610.1,2609.5,3.83348]
[1646442330236,0.0223052,2610.1,2609.5,3.83348]
[1646442330435,0.0223052,2610.1,2609.7,1.91679]
[1646442330637,0.0223052,2610.1,2609.7,0.23945402]
[1646442330838,0.00255517,2610.0,2609.7,0.23945402]
[1646442331436,0.0223052,2610.1,2609.7,13.04911402]
[1646442331636,0.0223052,2610.1,2609.8,2.10769]
[1646442331837,0.0223052,2610.1,2609.9,1.91642]
[1646442332838,0.0223052,2610.1,2610.0,0.95823]
[1646442333239,0.024429,2610.1,2610.0,0.95823]
[1646442333644,0.024429,2610.1,2610.0,2.00480991]
[1646442334392,0.0223052,2610.1,2610.0,2.00480991]
[1646442335391,0.0397368,2610.8,2610.1,4.7832]
[1646442335595,0.0102665,2610.6,2610.3,1.9157596]
[1646442335793,0.0200379,2611.7,2610.6,4.1]
[1646442335991,0.0200379,2611.7,2610.8,1.0]
[1646442335992,0.0411377,2611.7,2610.8,1.0]
[1646442336389,1.06549693,2611.6,2611.0,0.88133188]
[1646442336591,0.0411377,2611.7,2611.2,0.95771]
[1646442336791,0.0411377,2611.7,2611.3,0.9576594]
[1646442336992,0.4156622,2611.8,2611.3,4.4576594]
[1646442337198,0.4156622,2611.8,2611.4,1.0]
[1646442337630,0.4156622,2611.8,2611.6,0.95762]
[1646442337839,0.0521579,2612.1,2611.7,4.4]
[1646442338037,0.0606012,2612.1,2611.7,4.4]
[1646442338233,0.3843,2612.2,2611.5,3.8303572]
[1646442338433,0.3843,2612.2,2611.5,4.8303572]
[1646442338633,0.3843,2612.2,2611.8,0.95742]
[1646442338845,0.3843,2612.2,2611.9,2.05078207]
[1646442339838,0.3843,2612.2,2612.0,2.87217]
[1646442340638,0.3843,2612.2,2611.4,2.87243]
[1646442340837,0.3843,2612.2,2611.2,1.95781]
[1646442341038,0.00096,2612.1,2611.2,1.0]
[1646442341492,0.90636132,2611.9,2611.3,0.96658608]
[1646442341991,0.38526,2612.2,2611.3,0.96658608]
[1646442342191,0.0743374,2612.4,2611.5,4.4]
[1646442342192,0.0071294,2612.4,2611.5,4.4]
[1646442342391,0.0406958,2612.4,2611.6,1.91502]
[1646442342591,0.0406958,2612.4,2611.6,2.10632]
[1646442342792,0.07092466,2612.6,2611.7,3.8]
[1646442343196,1.151,2612.5,2612.1,0.95756]
[1646442344198,1.13523873,2612.6,2612.1,0.95756]
[1646442344199,1.151,2612.3,2612.1,0.95756]
[1646442344397,1.13523873,2612.6,2612.1,0.79729]
[1646442344398,1.151,2612.2,2612.1,0.79729]
[1646442344600,1.1435,2612.2,2612.1,0.79729]
[1646442344801,1.99343924,2612.2,2611.8,0.86726768]
[1646442345035,1.1435,2612.2,2611.9,0.95767]
[1646442345545,1.14446,2612.5,2611.9,0.95767]
[1646442345739,1.1435,2612.3,2611.9,0.95767]
[1646442345946,0.0144401,2613.0,2612.2,0.3832]
[1646442346141,0.0144401,2613.0,2612.6,0.01285313]
[1646442346142,0.0387135,2613.0,2612.6,0.01285313]
[1646442346340,3.847346,2613.7,2612.7,4.4]
[1646442346539,0.84923065,2613.6,2612.7,4.4]
[1646442346739,0.84923065,2613.6,2612.9,0.95701]
[1646442346940,0.84923065,2613.5,2612.9,0.95701]
[1646442347141,0.84923065,2613.7,2612.9,0.95701]
[1646442347340,0.84923065,2613.7,2613.1,0.95701]
[1646442347540,0.00257756,2613.4,2613.2,0.9570391]
[1646442347946,0.00257756,2613.4,2613.2,1.9140991]
[1646442348340,0.00257756,2613.4,2613.2,2.85797953]
[1646442348540,0.93075393,2613.8,2613.3,0.95703]
[1646442348782,0.00257755,2613.4,2613.3,0.95703]
[1646442349186,0.00257755,2613.4,2613.3,5.41405]
[1646442349395,0.0319044,2613.9,2613.6,0.95677]
[1646442349590,0.0319044,2613.9,2613.7,3.5]
[1646442349787,0.014477,2614.1,2613.6,6.3135087]
[1646442349989,0.014477,2614.1,2613.6,6.5724087]
[1646442350188,0.014477,2614.1,2614.0,1.01233084]
[1646442350393,0.0145229,2614.2,2614.0,1.01233084]
[1646442350394,4.61562194,2615.3,2614.0,3.5]
[1646442350594,0.0060994,2615.2,2614.2,1.19438484]
[1646442350797,0.0060994,2615.2,2614.3,6.75234]
[1646442350993,0.0060994,2615.2,2614.3,14.91234]
[1646442351194,0.0060994,2615.2,2613.8,1.0]
[1646442351397,0.0060994,2615.2,2614.2,1.0]
[1646442351398,1.01332409,2614.5,2614.2,1.0]
[1646442351993,0.3892994,2615.1,2614.2,1.0]
[1646442352193,0.3892994,2615.1,2614.4,0.95661]
[1646442352560,0.00257735,2614.5,2614.4,0.95661]
[1646442352761,0.00257735,2614.5,2614.4,1.91315]
[1646442353562,0.00257733,2614.6,2614.1,1.91341]
[1646442353765,0.00257733,2614.6,2613.9,1.91356]
[1646442354061,0.00257733,2614.6,2613.8,1.0]
[1646442354263,1.19176864,2614.1,2613.8,1.0]
[1646442354463,0.00257733,2614.6,2613.8,1.0]
[1646442354663,0.00257733,2614.6,2613.9,0.95687]
[1646442354864,1.00096,2614.8,2613.9,0.95687]
[1646442355064,0.00096,2614.8,2613.9,0.95687]
[1646442355364,4.5120652,2615.2,2613.9,0.95687]
[1646442355365,0.00257738,2614.3,2613.9,0.95687]
[1646442355564,0.00257738,2614.3,2613.9,1.91085366]
[1646442355765,1.09567202,2614.5,2613.9,1.91085366]
[1646442355969,1.47791202,2614.5,2613.9,1.91085366]
[1646442356166,1.48048937,2614.5,2613.9,0.95687]
[1646442356599,0.3832,2614.3,2613.5,0.1912]
[1646442356794,7.4571364,2614.4,2613.5,0.1912]
[1646442356795,0.3832,2613.7,2613.5,0.1912]
[1646442356992,0.3832,2613.7,2613.4,0.3235]
[1646442357196,0.3832,2613.5,2612.0,0.95744]
[1646442357399,0.3832,2613.3,2612.1,0.1913]
[1646442357795,0.3832,2613.1,2612.1,0.1913]
[1646442358098,1.34101,2612.9,2612.1,0.1913]
[1646442358393,0.3832,2612.7,2612.1,0.1913]
[1646442358599,0.3832,2612.7,2611.6,0.1913]
[1646442358798,0.3832,2612.5,2611.6,0.1913]
[1646442358993,1.34123,2612.3,2611.6,0.1913]
[1646442359193,0.38416,2612.3,2611.6,0.1913]
[1646442359393,0.38416,2612.3,2611.4,0.95775]
[1646442359593,0.38416,2612.3,2611.5,0.1913]
[1646442359792,1.09386825,2612.1,2611.5,0.9501233]
[1646442360050,1.09386825,2612.1,2611.5,1.91522]
[1646442360254,1.09386825,2612.1,2611.5,2.87291]
[1646442360451,1.09386825,2612.1,2611.5,1.91522]
[1646442360652,1.09386825,2612.1,2610.6,0.01256595]
[1646442360653,1.09386825,2612.1,2610.6,0.39576595]
[1646442360952,0.38416,2612.0,2611.7,0.00154467]
[1646442361155,0.3832,2612.0,2611.7,0.00154467]
[1646442361751,0.3832,2612.0,2611.1,2.17282437]
[1646442361951,0.3832,2611.6,2611.1,2.17282437]
[1646442362953,0.38416,2612.3,2611.1,2.17282437]
[1646442363150,0.38416,2612.3,2611.1,3.13062437]
[1646442363350,0.3832,2612.1,2611.4,0.95771]
[1646442363795,0.19196,2612.3,2610.7,1.0]
[1646442363796,1.59701465,2611.7,2610.7,1.0]
[1646442364198,0.3832,2611.5,2610.7,1.0]
[1646442364599,3.5,2611.4,2610.7,1.0]
[1646442364800,0.3832,2611.1,2610.7,1.0]
[1646442364996,0.3832,2611.1,2609.7,5.0]
[1646442364997,0.3832,2610.9,2609.7,5.0]
[1646442365214,0.3832,2610.7,2609.7,5.0]
[1646442365399,12.0432,2610.7,2609.7,5.0]
[1646442365608,0.3832,2610.7,2609.7,5.0]
[1646442365799,12.0432,2610.7,2609.7,5.0]
[1646442365999,12.0432,2610.4,2609.7,5.0]
[1646442366196,1.19409425,2609.8,2609.7,5.0]
[1646442366401,1.57729425,2609.8,2609.7,5.0]
[1646442366899,12.66,2610.4,2609.7,5.0]
[1646442366900,0.3832,2610.3,2609.7,5.0]
[1646442367105,0.3832,2610.3,2609.9,0.00164006]
[1646442367943,1.01340416,2610.1,2609.7,5.0]
[1646442368243,1.01340416,2610.1,2610.0,0.00164003]
[1646442369241,1.01340416,2610.1,2609.7,5.0]
[1646442369441,0.3832,2610.2,2609.9,0.00135305]
[1646442369649,12.2347,2610.7,2609.7,4.95135305]
[1646442369843,15.2347,2610.7,2609.7,4.95135305]
[1646442370042,13.2347,2610.7,2609.7,4.95135305]
[1646442370645,0.3832,2610.0,2609.7,4.95135305]
[1646442371898,1.3419874,2610.0,2609.7,4.95135305]
[1646442372100,4.3419874,2610.0,2609.7,3.27419178]
[1646442372298,1.3419874,2610.0,2609.7,3.27419178]
[1646442372505,0.3832,2609.6,2608.2,3.5]
[1646442372702,0.3832,2609.6,2608.1,1.0]
[1646442372703,3.0,2609.4,2608.1,1.0]
[1646442372901,0.3832,2609.6,2608.1,1.0]
[1646442373104,0.9592651,2608.9,2607.6,0.0143136]
[1646442373304,3.0,2608.6,2607.7,1.0]
[1646442373501,1.9189445,2608.5,2607.7,1.0]
[1646442373703,1.9189445,2608.5,2607.6,1.09175981]
[1646442373704,1.0,2608.8,2607.6,1.09175981]
[1646442374100,0.959162,2608.9,2607.6,1.09175981]
[1646442374307,3.0673051,2609.2,2607.6,1.09175981]
[1646442374308,3.8781051,2609.2,2607.6,1.09175981]
[1646442374501,3.8781051,2609.2,2608.1,0.90690881]
[1646442374502,1.10467448,2608.7,2608.1,0.90690881]
[1646442374902,1.0,2609.4,2608.1,0.90690881]
[1646442375165,9.16238704,2610.2,2608.2,0.7086881]
[1646442375166,3.1862,2610.1,2608.2,0.7086881]
[1646442375359,6.4978,2610.1,2608.2,0.7086881]
[1646442375957,0.88214764,2609.6,2608.3,0.95884]
[1646442376158,1.84103904,2609.6,2607.9,2.8823]
[1646442376366,1.84103904,2609.6,2607.9,3.8823]
[1646442376562,0.1907,2609.5,2607.9,3.8823]
[1646442376764,0.32889997,2609.5,2607.9,2.8823]
[1646442376969,3.82889997,2609.5,2607.9,2.8823]
[1646442377164,1.18820223,2608.5,2607.7,0.95905]
[1646442377366,1.18820223,2608.5,2607.6,2.0143136]
[1646442377965,1.18820223,2608.5,2607.6,0.0143136]
[1646442378367,0.90629014,2608.1,2607.6,0.0143136]
[1646442379183,0.90629014,2608.1,2607.9,0.00163384]
[1646442380083,0.90629014,2608.1,2607.6,0.0143136]
[1646442380285,0.90629014,2608.1,2607.9,0.00163387]
[1646442380886,3.5,2608.0,2607.9,0.00163387]
[1646442381085,3.5,2608.0,2607.9,3.387e-05]
[1646442381286,3.5,2608.0,2607.6,0.0143136]
[1646442381287,4.5,2608.0,2607.6,0.0143136]
[1646442381484,4.5,2608.0,2607.9,3.387e-05]
[1646442382091,6.41935,2608.0,2607.9,3.387e-05]
[1646442382386,23.9585958,2608.0,2607.6,0.0143136]
[1646442382639,13.5794432,2607.9,2607.6,0.0143136]
[1646442382836,0.3832,2607.7,2607.6,0.0143136]
[1646442383038,3.8832,2607.7,2607.6,0.0143136]
[1646442383236,1.52048599,2607.7,2607.6,0.0143136]
[1646442383436,2.52048599,2607.7,2607.6,0.0143136]
[1646442384341,2.13728599,2607.7,2607.6,0.0143136]
[1646442384744,1.13728599,2607.7,2607.6,0.0143136]
[1646442386295,1.52048599,2607.7,2607.6,0.0143136]
[1646442387088,1.13728599,2607.7,2607.6,0.0143136]
[1646442388788,0.9597232,2607.9,2607.6,0.0143136]
[1646442388993,2.0,2608.1,2607.6,0.0143136]
[1646442389194,2.8732,2608.7,2607.6,0.0143136]
[1646442389195,2.0,2608.4,2607.6,0.0143136]
[1646442389393,0.3832,2608.6,2607.6,0.0143136]
[1646442389596,4.8732,2608.7,2607.6,0.0143136]
[1646442390068,4.8732,2608.7,2608.1,1.16085158]
[1646442390069,2.0,2608.7,2608.1,1.16085158]
[1646442390253,0.191,2609.1,2608.1,1.16085158]
[1646442390456,2.0,2609.3,2608.1,1.16085158]
[1646442391251,0.95793429,2608.8,2608.1,1.16085158]
[1646442391859,1.9181371,2609.2,2608.1,1.16085158]
[1646442392857,0.99068201,2609.1,2608.5,1.14696041]
[1646442394286,0.99068201,2609.1,2607.9,0.5747]
[1646442395093,1.94967771,2609.1,2608.0,0.95903]
[1646442395290,0.99068201,2609.1,2608.4,1.1003781]
[1646442395989,3.0,2609.3,2608.4,1.1003781]
[1646442395990,1.0,2609.3,2608.4,1.1003781]
[1646442396188,0.52139997,2609.5,2608.5,0.95884]
[1646442396590,0.13819997,2609.5,2608.5,0.95884]
[1646442397194,0.13819997,2609.5,2609.0,1.22300879]
[1646442397393,3.6915,2610.0,2609.0,1.22300879]
[1646442397394,0.191,2609.9,2609.0,1.22300879]
[1646442397645,2.36,2610.4,2609.0,1.22300879]
[1646442397839,6.389,2610.7,2609.1,0.95857]
[1646442398339,0.958548,2610.3,2609.1,0.95857]
[1646442398538,0.98836066,2610.0,2609.1,0.95857]
[1646442398739,0.98836066,2610.0,2609.4,1.00728126]
[1646442399339,0.98836066,2610.0,2609.4,1.96580126]
[1646442399739,2.9170714,2610.6,2609.4,1.96580126]
[1646442399942,1.9170714,2610.6,2609.4,1.96580126]
[1646442400146,0.1915,2610.7,2609.5,0.3832]
[1646442400340,2.7391,2610.8,2609.8,0.9583]
[1646442400538,7.47,2610.9,2609.8,0.9583]
[1646442400739,1.02577546,2610.4,2609.8,0.9583]
[1646442401139,0.3832,2610.8,2609.5,0.1915]
[1646442401140,1.20072516,2609.9,2609.5,0.1915]
[1646442401390,1.20072516,2609.9,2609.4,0.1915]
[1646442401596,1.20072516,2609.9,2608.9,0.1915]
[1646442401796,3.8832,2609.8,2608.8,0.1915]
[1646442401993,3.8832,2609.8,2608.5,2.8321]
[1646442401994,4.8419321,2609.8,2608.6,0.1915]
[1646442402193,1.11777478,2609.2,2608.6,1.19813064]
[1646442402801,1.11777478,2609.2,2608.5,0.1915]
[1646442402993,1.11777478,2609.2,2608.4,0.1915]
[1646442403395,1.11777478,2609.2,2608.4,2.10906]
[1646442404098,1.18794199,2608.8,2608.4,2.10906]
[1646442404296,3.3009848,2609.6,2609.0,1.25939945]
[1646442404297,0.3832,2609.5,2609.0,1.25939945]
[1646442405235,1.03811551,2609.4,2609.0,1.25850789]
[1646442405641,0.9587049,2609.9,2609.0,1.25850789]
[1646442405841,2.95874,2610.2,2609.0,1.25850789]
[1646442405842,2.0,2610.2,2609.0,1.25850789]
[1646442406041,2.0,2610.2,2609.0,1.45000789]
[1646442406441,12.5566,2610.4,2609.1,0.82159421]
[1646442406641,8.67597189,2610.4,2609.8,1.02396744]
[1646442406842,0.1915,2610.8,2609.9,0.95831]
[1646442407040,7.47,2611.0,2609.9,0.95831]
[1646442407041,0.72420211,2610.7,2609.9,0.95831]
[1646442407242,7.6615,2611.0,2609.9,0.95831]
[1646442407441,0.72423179,2610.9,2609.9,0.95831]
[1646442408045,1.04709132,2610.8,2610.2,1.17283032]
[1646442408241,7.6615,2611.0,2610.2,2.13108032]
[1646442408447,7.47,2611.0,2610.2,2.51428032]
[1646442409112,7.46843648,2611.0,2610.2,2.13108032]
[1646442409314,7.46843648,2611.0,2610.2,1.17283032]
[1646442409315,0.87212826,2610.9,2610.2,1.17283032]
[1646442409513,0.87212826,2610.9,2610.0,0.9583]
[1646442409913,0.72450116,2610.8,2610.0,0.9583]
[1646442410113,0.87212826,2610.9,2610.0,0.9583]
[1646442410413,0.72449095,2610.8,2610.1,0.95821]
[1646442410619,0.72449095,2610.8,2610.3,0.95819]
[1646442410815,0.87212826,2610.9,2610.3,0.95819]
[1646442411412,7.47,2611.1,2610.3,0.95819]
[1646442411613,7.47,2611.1,2610.3,1.14969]
[1646442411816,7.47,2611.1,2610.3,2.10783]
[1646442412013,7.47,2611.1,2610.5,0.95808]
[1646442412538,7.47,2611.1,2610.8,0.94992387]
[1646442412947,7.47,2611.1,2610.9,0.95799]
[1646442413544,7.47,2611.6,2610.9,0.95799]
[1646442413744,0.72421685,2611.5,2610.9,0.95799]
[1646442413947,1.18141725,2611.8,2611.2,1.19908027]
[1646442414146,0.00096,2611.9,2611.3,0.95776]
[1646442414147,0.73331457,2611.7,2611.3,0.95776]
[1646442414347,0.00907042,2611.7,2611.3,0.95776]
[1646442415045,1.20013636,2611.8,2611.3,0.95776]
[1646442415245,1.20013636,2611.8,2611.5,0.95774]
[1646442415654,0.00907085,2612.0,2611.5,0.95774]
[1646442416288,0.19196,2612.4,2611.5,0.95774]
[1646442416488,0.73075014,2612.3,2611.5,0.95774]
[1646442416693,0.89624046,2612.1,2611.5,0.95774]
[1646442416888,0.72325853,2612.0,2611.5,0.95774]
[1646442417090,0.72325853,2612.0,2611.5,1.91546]
[1646442417293,0.72325853,2612.0,2610.8,1.91578]
[1646442417294,1.12611574,2611.7,2610.8,1.91578]
[1646442417491,1.12611574,2611.7,2610.4,5.34088]
[1646442417492,1.106279,2611.6,2610.4,5.34088]
[1646442417692,1.106279,2611.5,2610.3,2.9761]
[1646442417891,1.106279,2611.5,2610.1,1.0]
[1646442417892,0.72313005,2611.4,2610.1,1.0]
[1646442418093,0.3832,2611.5,2610.3,0.95812]
[1646442418297,3.5,2611.6,2610.3,0.95812]
[1646442418298,0.92828564,2611.3,2610.3,0.95812]
[1646442418493,3.50096,2611.8,2610.6,0.95798]
[1646442418695,0.72264619,2611.7,2610.6,0.95798]
[1646442418895,0.00096,2611.6,2610.6,0.95798]
[1646442419396,0.72360619,2611.6,2610.6,0.95798]
[1646442419596,1.01530796,2611.5,2610.9,1.11262451]
[1646442419798,1.01530796,2611.5,2610.9,2.07057451]
[1646442420040,1.01530796,2611.5,2610.9,0.95795]
[1646442420239,0.3832,2611.4,2610.5,1.91595]
[1646442420439,1.01530796,2611.5,2609.9,4.1565]
[1646442420440,0.3832,2611.3,2609.9,4.1565]
[1646442420649,0.3832,2611.1,2609.9,4.1565]
[1646442420845,1.34168,2610.9,2609.9,4.1565]
[1646442421039,1.2278815,2610.4,2609.9,2.999]
[1646442421244,1.2278815,2610.4,2609.8,1.18324631]
[1646442421441,0.9585262,2610.3,2609.3,0.3832]
[1646442421643,1.6110815,2610.4,2609.2,5.41697]
[1646442422047,1.6110815,2610.4,2609.2,1.91697]
[1646442422643,0.96012877,2609.9,2609.3,0.86601919]
[1646442422847,0.96012877,2609.9,2609.1,0.4297]
[1646442423044,1.34332877,2609.9,2609.1,0.4297]
[1646442423893,1.3419224,2609.8,2609.1,0.4297]
[1646442424093,0.9587224,2609.8,2609.1,0.4297]
[1646442424793,0.96012877,2609.9,2609.1,0.4297]
[1646442424995,8.6613,2610.4,2609.4,0.91807263]
[1646442425194,1.0,2610.4,2609.4,0.91807263]
[1646442425394,0.1912,2610.3,2609.6,0.95838]
[1646442425594,10.2007,2610.9,2609.4,0.91807263]
[1646442425595,2.0,2610.8,2609.4,0.91807263]
[1646442425793,0.7225587,2610.7,2609.4,0.91807263]
[1646442426008,0.9584591,2610.5,2609.4,0.91807263]
[1646442426295,1.11239586,2610.3,2609.4,0.91807263]
[1646442427845,2.07092206,2610.3,2609.4,0.91807263]
[1646442428445,1.11239586,2610.3,2609.7,1.0]
[1646442429252,2.9171092,2610.5,2609.8,1.12351882]
[1646442429253,1.0,2610.5,2609.8,1.12351882]
[1646442429453,0.191,2610.6,2609.8,1.12351882]
[1646442429653,0.1905,2610.8,2609.8,1.50671882]
[1646442429851,0.19,2611.0,2609.8,1.50671882]
[1646442430052,0.72381899,2610.9,2609.8,1.50671882]
[1646442430255,0.7248336,2610.8,2610.3,1.13154886]
[1646442430451,1.87721808,2610.9,2610.3,0.06809928]
[1646442431289,0.9583061,2610.9,2610.3,0.06809928]
[1646442432690,2.03548241,2610.9,2610.3,0.06809928]
[1646442432892,2.03548241,2610.9,2610.0,0.95828]
[1646442433292,2.03548241,2610.9,2610.1,3.5]
[1646442433494,0.32769997,2611.1,2610.1,5.41617]
[1646442433695,0.70722619,2611.0,2610.4,0.95811]
[1646442434693,0.70722619,2611.0,2610.6,0.95807]
[1646442434894,7.47,2611.7,2610.6,0.95807]
[1646442434895,0.01006092,2611.7,2610.6,0.95807]
[1646442435141,0.70744042,2611.6,2610.6,4.45807]
[1646442435339,0.70744042,2611.6,2610.6,0.95807]
[1646442435538,0.3832,2611.6,2610.2,1.91621]
[1646442435743,0.3832,2611.6,2609.7,3.8244]
[1646442435744,0.3832,2610.9,2609.7,3.8244]
[1646442435938,1.09064042,2610.8,2609.8,0.84387739]
[1646442436136,0.3832,2610.6,2609.8,0.84387739]
[1646442436340,0.70744042,2610.5,2609.7,1.0]
[1646442436645,1.05330392,2609.9,2609.7,1.0]
[1646442436846,1.43650392,2609.9,2609.7,1.0]
[1646442437042,0.3832,2609.7,2609.0,1.25850789]
[1646442437247,0.3832,2609.5,2609.0,1.25850789]
[1646442437838,1.91355282,2609.4,2609.0,1.25850789]
[1646442438039,1.20606086,2609.4,2609.0,1.25850789]
[1646442438788,1.58926086,2609.4,2609.0,1.25850789]
[1646442438991,1.09077716,2609.3,2609.0,1.25850789]
[1646442439199,1.342221,2609.3,2609.0,1.25850789]
[1646442439794,2.20606086,2609.4,2609.0,1.25850789]
[1646442439993,0.7080308,2609.3,2609.0,1.25850789]
[1646442440794,0.3832,2609.2,2609.0,1.25850789]
[1646442440993,1.0912308,2609.1,2609.0,1.25850789]
[1646442441997,0.7080308,2609.1,2609.0,1.25850789]
[1646442443249,2.20606086,2609.4,2609.0,1.25850789]
[1646442443450,2.4925034,2609.6,2609.0,1.25850789]
[1646442443451,0.1915,2609.6,2609.0,1.25850789]
[1646442443650,2.0,2609.7,2609.0,1.25850789]
[1646442443853,1.0,2610.0,2609.0,1.25850789]
[1646442444053,0.70706002,2609.8,2609.1,0.95861]
[1646442444254,0.1916,2609.7,2609.0,1.25850789]
[1646442444657,4.9571,2610.2,2609.0,1.25850789]
[1646442444658,0.706955,2609.6,2609.0,1.25850789]
[1646442444856,11.66,2610.0,2609.0,1.25850789]
[1646442444857,0.706955,2609.5,2609.0,1.25850789]
[1646442445056,1.857495,2609.4,2609.0,1.25850789]
[1646442445261,12.0432,2609.2,2608.1,0.383]
[1646442445459,12.0432,2609.2,2607.9,0.3263]
[1646442445460,12.0432,2609.0,2607.9,0.3263]
[1646442445656,12.0432,2609.0,2607.6,1.0143136]
[1646442445657,0.3832,2608.8,2607.8,0.00165259]
[1646442445856,0.3832,2608.6,2607.8,0.00165259]
[1646442446295,1.9189151,2608.4,2607.8,0.00165259]
[1646442446498,0.3832,2608.3,2607.8,0.00165259]
[1646442446694,1.06404535,2607.9,2607.6,0.0143136]
[1646442446894,1.06404535,2607.9,2607.8,0.00165259]
[1646442447497,2.02352155,2607.9,2607.8,0.00165259]
[1646442447696,2.02352155,2607.9,2607.6,0.0143136]
[1646442448099,2.40672155,2607.9,2607.7,0.00165262]
[1646442448901,2.40672155,2607.9,2607.6,0.0143136]
[1646442449300,2.40672155,2607.9,2607.7,0.00164852]
[1646442450137,3.5,2607.8,2607.6,0.0143136]
[1646442450339,5.8428,2607.8,2607.6,0.0143136]
[1646442450539,3.8832,2607.7,2607.6,0.00046549]
[1646442450745,4.8832,2607.7,2607.6,0.00046549]
[1646442451545,16.5432,2607.7,2607.6,0.00046549]
[1646442451743,1.3832,2607.7,2607.6,0.00046549]
[1646442451945,1.0,2607.7,2607.6,0.00046549]
[1646442452250,2.0,2607.8,2607.6,0.00046549]
[1646442452443,2.7216,2608.6,2607.6,0.00046549]
[1646442452444,2.9133,2608.6,2607.6,0.00046549]
[1646442452657,2.0,2608.4,2607.6,0.00046549]
[1646442452846,0.1917,2608.9,2607.7,0.3832]
[1646442453048,2.1915,2609.6,2607.9,0.3832]
[1646442453245,1.19401581,2609.2,2608.5,0.99706967]
[1646442453897,1.19401581,2609.2,2608.1,1.91748]
[1646442454298,1.19401581,2609.2,2608.4,0.95886]
[1646442454903,2.1915,2609.6,2608.6,1.05439844]
[1646442455502,2.0,2609.6,2608.6,1.05439844]
[1646442455901,1.04357732,2609.5,2608.7,1.91746]
[1646442456203,0.7663,2609.7,2608.7,2.3005517]
[1646442456204,0.3831,2609.7,2608.7,2.3005517]
[1646442456406,2.0,2610.2,2608.7,1.53342]
[1646442456602,0.1895,2610.1,2608.7,1.53342]
[1646442457201,1.27606827,2610.1,2609.4,0.89025258]
[1646442457844,0.1895,2610.1,2609.4,0.89025258]
[1646442458047,2.0,2610.5,2609.4,1.27345258]
[1646442458244,0.13819997,2610.7,2609.5,1.34161]
[1646442458545,0.13819997,2610.7,2609.8,1.9163972]
[1646442458745,0.1869,2610.9,2609.8,0.3832]
[1646442458951,1.03655522,2610.9,2610.2,1.1694682]
[1646442459748,1.03655522,2610.9,2610.2,2.1276682]
[1646442460349,0.74620456,2610.8,2610.2,1.1694682]
[1646442460554,0.74620456,2610.8,2610.0,2.29949]
[1646442460750,0.74620456,2610.8,2609.7,1.0]
[1646442460950,0.74620456,2610.8,2609.6,0.95841]
[1646442461695,1.01856455,2610.3,2609.6,2.038225]
[1646442462693,1.01856455,2610.3,2609.1,5.84697]
[1646442462894,1.01856455,2610.3,2609.1,2.91687]
[1646442463094,1.01856455,2610.3,2609.2,0.79948856]
[1646442463494,1.01856455,2610.3,2609.0,1.0]
[1646442463694,0.88867116,2609.9,2609.2,0.98400073]
[1646442464096,0.88867116,2609.9,2608.9,0.95867]
[1646442464301,3.8832,2609.8,2608.8,1.0]
[1646442464498,0.74650121,2609.7,2608.8,1.0]
[1646442464699,3.8832,2609.6,2608.8,1.0]
[1646442464897,0.74650121,2609.7,2608.8,1.0]
[1646442464898,1.12967372,2609.5,2608.8,1.0]
[1646442465150,4.5,2609.8,2608.7,0.1915]
[1646442465151,2.03591479,2609.0,2608.7,0.1915]
[1646442465348,2.99509479,2609.0,2608.7,0.1915]
[1646442465546,3.37829479,2609.0,2608.1,0.6234]
[1646442465759,2.45996969,2609.0,2608.1,0.2399]
[1646442465949,0.3832,2608.8,2608.1,0.2399]
[1646442466352,0.98216844,2608.6,2608.1,0.2399]
[1646442466549,0.1915,2609.1,2608.1,0.2399]
[1646442466550,1.0,2609.2,2608.1,0.2399]
[1646442466752,3.0,2609.3,2608.2,0.78980583]
[1646442467151,2.0,2609.3,2608.2,0.78980583]
[1646442467349,3.0,2609.3,2608.3,1.34204]
[1646442467551,2.0,2609.3,2608.7,1.19079025]
[1646442467759,1.10711902,2609.4,2608.7,1.57399025]
[1646442467952,2.0,2610.0,2608.7,1.57399025]
[1646442468153,0.75760362,2609.9,2608.7,1.57399025]
[1646442468995,0.75760362,2609.9,2608.5,1.91734]
[1646442468996,0.1915,2609.8,2609.1,0.86968993]
[1646442469397,5.3094,2610.4,2609.1,0.86968993]
[1646442469398,4.8909,2610.4,2609.1,0.86968993]
[1646442469597,0.75795154,2610.3,2609.2,0.3832]
[1646442469997,1.88540353,2610.2,2609.5,1.22022313]
[1646442470199,1.12745199,2610.2,2609.5,1.22022313]
[1646442471198,4.96210639,2610.2,2609.5,1.22022313]
[1646442471399,0.75772609,2610.1,2609.5,1.22022313]
[1646442471799,5.92081639,2610.2,2608.8,2.91723]
[1646442471999,5.92081639,2610.2,2608.9,0.79005881]
[1646442472200,0.9587063,2610.0,2608.9,0.79005881]
[1646442475661,0.75815486,2610.1,2609.0,1.34186]
[1646442475856,0.75815486,2610.1,2609.1,0.7903423]
[1646442475857,1.14135486,2610.1,2609.1,0.7903423]
[1646442476060,0.3832,2609.9,2608.5,2.7956]
[1646442476311,4.4586993,2610.0,2608.6,0.79039858]
[1646442476312,1.06405827,2609.2,2608.6,0.79039858]
[1646442476694,1.06405827,2609.2,2608.5,0.92742588]
[1646442476894,1.0430793,2609.2,2607.9,2.9763]
[1646442477095,2.0021293,2609.2,2608.0,0.79073666]
[1646442477293,0.9590215,2609.1,2608.0,0.79073666]
[1646442477900,0.98605549,2608.7,2608.0,1.97836131]
[1646442478100,1.09707718,2609.2,2608.8,0.01756252]
[1646442478303,0.95912,2609.0,2608.8,0.01756252]
[1646442478501,1.9182645,2609.0,2608.8,0.01756252]
[1646442479099,2.3014645,2609.0,2608.8,0.01756252]
[1646442479305,3.8832,2608.9,2608.8,0.01756252]
[1646442479502,3.8832,2608.9,2607.8,0.00131741]
[1646442479503,4.5,2608.8,2607.8,0.00131741]